Cogmind - Beta 13 @@@ ROGUE MODE // 2024.04.07 @ 10:43:00 Player: A Moose Result: Destroyed by S-10 Pest with Light Assault Rifle Performance ------------- Evolutions (0) 0 Regions Visited (2) 400 Robots Destroyed (6) 30 Value Destroyed (91) 91 Prototype IDs (0) 0 Alien Tech Used (0) 0 Bonus (0) 0 TOTAL SCORE: 521 Bonus ------- None Cogmind --------- Core Integrity 0/250 Matter 297/300 Energy 100/100 System Corruption 0% Temperature Cool (0) Movement Core (100) Ox1 Location -10/Mines Parts ------- > --- POWER (1) -------- (None) > --- PROPULSION (2) --- (None) > --- UTILITY (2) ------ Small Storage Unit > --- WEAPON (2) ------- (None) > --- INVENTORY (8) ---- (None) Peak State ------------ > --- POWER ------------ Light Ion Engine > --- PROPULSION ------- Wheel Compact Wheel > --- UTILITY ---------- Small Storage Unit Improved Terrain Scanner > --- WEAPON ----------- Medium Laser Assault Rifle > --- INVENTORY -------- Light Ion Engine Wheel Wheel [Rating: 9] Favorites ----------- Power Light Ion Engine Engine Light Ion Engine Propulsion Wheel Wheel Wheel Utility Small Storage Unit Device Improved Terrain Scanner Storage Small Storage Unit Weapon Assault Rifle Energy Gun Medium Laser Ballistic Gun Assault Rifle Build | -11 -10 -10 ------- Run | Yrd Mat Min Slots Evolved . | . . . Power . | . . . Propulsion . | . . . Utility . | . . . Weapon . | . . . Parts Attached 10 | 7 3 . Power 2 | 1 1 . Engine 2 | 1 1 . Core . | . . . Reactor . | . . . Propulsion 4 | 2 2 . Treads . | . . . Leg . | . . . Wheel 4 | 2 2 . Hover . | . . . Flight . | . . . Utility 2 | 2 . . Device 1 | 1 . . Storage 1 | 1 . . Processor . | . . . Hackware . | . . . Protection . | . . . Artifact . | . . . Weapon 2 | 2 . . Energy Gun 1 | 1 . . Energy Cannon . | . . . Ballistic Gun 1 | 1 . . Ballistic Cannon . | . . . Launcher . | . . . Special Weapon . | . . . Impact Weapon . | . . . Slashing Weapon . | . . . Piercing Weapon . | . . . Special Melee Weapon . | . . . Unidentified Prototypes . | . . . Parts Lost 9 | . 6 3 Power 2 | . 1 1 Propulsion 4 | . 3 1 Utility 1 | . . 1 Weapon 2 | . 2 . Highest Loss Streak 9 | . 6 9 To Critical Strikes . | . . . Average Slot Usage (%) 81 | . 87 35 Engine 10 | . 10 14 Wheel 20 | . 22 7 Device 12 | . 14 . Storage 14 | . 14 14 Energy Gun 11 | . 13 . Ballistic Gun 11 | . 13 . Naked Turns . | . . . Heaviest Build 13 | 13 13 9 Greatest Support 26 | 26 26 10 Greatest Overweight (x) 2 | . 2 . Average Overweight (x) . | . . . Largest Inventory Capacity 8 | 8 8 8 Average Capacity 7 | 7 8 8 Most Carried 5 | 5 3 . Average Carried 2 | 2 2 . Final Capacity 8 | 8 8 8 Final Carried 3 | 3 . . Class Distribution -------------------- 100% | Mutant Dominant Class ---------------- Mutant | -10/Materials Mutant | -10/Mines Resources | -11 -10 -10 ----------- Run | Yrd Mat Min Matter Collected 241 | 241 . . Remotely . | . . . Salvage Created 112 | 28 84 . Parts 13 | 5 8 . Haulers Intercepted . | . . . Recyclers Shooed . | . . . Parts Field Recycled . | . . . Retrieved Matter . | . . . Parts Self-Destructed . | . . . Prevented . | . . . Kills | -11 -10 -10 ------- Run | Yrd Mat Min Combat Hostiles Destroyed 5 | . 5 . Guns 3 | . 3 . AOE 2 | . 2 . Classes Destroyed 3 | 1 2 . Tunneler 1 | 1 . . Swarmer 4 | . 4 . Grunt 1 | . 1 . Best Kill Streak 4 | 1 4 . Combat Bots Only 4 | . 4 . Max Kills in Single Turn 2 | 1 2 . Gunslinging . | . . . Exploded 2 | . 2 . Melee . | . . . Uniques/NPCs Destroyed . | . . . Combat | -11 -10 -10 -------- Run | Yrd Mat Min Hostile Shots Fired 112 | . 78 34 Missed 27 | . 20 7 Damage Taken 795 | . 561 234 Core 252 | . 146 106 Absorbed by Shields . | . . . Core Remaining (%) 100 | 100 . . Volleys Fired 18 | 2 16 . Largest 2 | 2 2 . Hottest 70 | 70 70 . Shots Fired 36 | 4 32 . Gun 36 | 4 32 . Cannon . | . . . Launcher . | . . . Special . | . . . Kinetic 18 | 2 16 . Thermal 18 | 2 16 . Explosive . | . . . Electromagnetic . | . . . Robot Hit Streak 3 | 3 3 . Robot Miss Streak 5 | . 5 . Penetration Max . | . . . Secondary Targets 1 | . 1 . Max Gunslinging Chain 1 | . 1 . Shots Hit Robots 19 | 3 16 . Core Hits 12 | 1 7 4 Critical Kills . | . . . Critical Parts Destroyed . | . . . Critical Strikes 1 | . 1 . Burn 1 | . 1 . Melee Attacks . | . . . Impact . | . . . Slashing . | . . . Piercing . | . . . Sneak Attacks . | . . . Combat Hostiles . | . . . Follow-up Attacks . | . . . Damage Inflicted 416 | 39 342 35 Guns 252 | 39 213 . Cannons . | . . . Explosions 129 | . 129 . Melee . | . . . Ramming 35 | . . 35 Kinetic 90 | 14 76 . Thermal 162 | 25 137 . Explosive 129 | . 129 . Electromagnetic . | . . . Impact . | . . . Slashing . | . . . Piercing . | . . . Highest Corruption . | . . . Average Corruption . | . . . Corruption Purged . | . . . Corruption Blocked . | . . . Overload Shots . | . . . Overflow Damage . | . . . Projectiles . | . . . Explosions . | . . . Melee . | . . . Knockbacks . | . . . Impact . | . . . Kinetic . | . . . Secondary . | . . . Self-Inflicted Damage 15 | . . 15 Shots . | . . . Rammed 16 | . . 16 Targets Rammed 16 | . . 16 Kicked . | . . . Crushed . | . . . Highest Temperature 40 | 18 40 . Average Temperature 15 | 10 15 . Received Heat Transfer 138 | . 138 . Siege Activations . | . . . Robots Corrupted . | . . . Combat Hostiles . | . . . Parts Fried . | . . . Impact Corruptions . | . . . Robots Melted . | . . . Combat Hostiles . | . . . Parts Melted 1 | . 1 . Heat Transferred 555 | 74 481 . Parts Sabotaged . | . . . Parts Stolen . | . . . Parts Stripped . | . . . Power Chain Reactions . | . . . Alert | -11 -10 -10 ------- Run | Yrd Mat Min Peak Influence 132 | 5 132 35 Initial 35 | . 3 35 Average 21 | 3 36 20 Maximum Alert Level . | . . . Low Security (%) 100 | 100 100 100 Level 1 . | . . . Level 2 . | . . . Level 3 . | . . . Level 4 . | . . . Level 5 . | . . . High Security . | . . . Max Security . | . . . Squads Dispatched 1 | . 1 . Investigation . | . . . Extermination . | . . . Reinforcement 1 | . 1 . Assault . | . . . Garrison . | . . . Intercept . | . . . Searches Triggered . | . . . Construction Impeded . | . . . Haulers Reinforced . | . . . Active Scanning Responses . | . . . Cargo Convoy Interrupts . | . . . Stealth | -11 -10 -10 --------- Run | Yrd Mat Min Distress Signals 1 | . 1 . Communications Jammed . | . . . Distress Signals . | . . . Times Spotted 15 | . 12 3 Peak Tracking Total 9 | . 9 3 Tactical Retreats . | . . . Traps | -11 -10 -10 ------- Run | Yrd Mat Min Traps Triggered . | . . . Indirectly . | . . . Trap Hack Attempts . | . . . Triggered . | . . . Disarmed . | . . . Reprogrammed . | . . . Reused . | . . . Traps Extracted . | . . . Installed . | . . . Triggered . | . . . Machines | -11 -10 -10 ---------- Run | Yrd Mat Min Machines Disabled 1 | . 1 . Max in Single Turn 1 | . 1 . Machines Repaired . | . . . Machines Dismantled . | . . . Machines Sabotaged . | . . . Overloaded Fab Kills . | . . . Hacking | -11 -10 -10 --------- Run | Yrd Mat Min Machines Accessed 2 | . 2 . Terminals 2 | . 2 . Fabricators . | . . . Repair Stations . | . . . Recycling Units . | . . . Scanalyzers . | . . . Garrison Access . | . . . Total Hacks 5 | . 5 . Successful 3 | . 3 . Failed 2 | . 2 . Catastrophic 1 | . 1 . Database Lockouts . | . . . Manual . | . . . Terminals 5 | . 5 . Fabricators . | . . . Repair Stations . | . . . Recycling Units . | . . . Scanalyzers . | . . . Garrison Access . | . . . Terminal Hacks 3 | . 3 . Unreport Threat 1 | . 1 . Locate Traps 1 | . 1 . Investigation Status 1 | . 1 . Fabricator Hacks . | . . . Repair Station Hacks . | . . . Recycling Unit Hacks . | . . . Scanalyzer . | . . . Garrison Access Hacks . | . . . Unauthorized Hacks . | . . . Terminals . | . . . Fabricators . | . . . Repair Stations . | . . . Recycling Units . | . . . Scanalyzers . | . . . Garrison Access . | . . . Data Cores Recovered . | . . . Used . | . . . Hacking Detections 1 | . 1 . Full Trace Events . | . . . Feedback Events . | . . . Feedback Blocked . | . . . Robot Schematics Acquired . | . . . Robots Built . | . . . Authchips . | . . . Time . | . . . Total Robot Build Rating . | . . . Part Schematics Acquired . | . . . Parts Built . | . . . Authchips . | . . . Time . | . . . Total Part Build Rating . | . . . Parts Repaired . | . . . Time . | . . . Parts Recycled . | . . . Recycled Matter . | . . . Retrieved Matter . | . . . Retrieved Components . | . . . Parts Scanalyzed . | . . . Part Schematics Acquired . | . . . Parts Damaged . | . . . Bothacking | -11 -10 -10 ------------ Run | Yrd Mat Min Used RIF Installer . | . . . Robots Hacked . | . . . Non-combat . | . . . Combat . | . . . Robot Hacks Applied . | . . . Relay Couplers Released . | . . . Fabnet Peak Effective % . | . . . Robots Rewired . | . . . Allies Hacked . | . . . Hacks Repelled . | . . . Allies | -11 -10 -10 -------- Run | Yrd Mat Min Total Allies . | . . . Largest Group . | . . . Highest-Rated Group . | . . . Highest-Rated Ally . | . . . Total Orders . | . . . Ally Attacks . | . . . Total Damage . | . . . Kills . | . . . Allies Corrupted . | . . . Allies Melted . | . . . Intel | -11 -10 -10 ------- Run | Yrd Mat Min Robot Analysis Total . | . . . Derelict Logs Recovered . | . . . Drone Launches . | . . . Drone Recoveries . | . . . Exploration | -11 -10 -10 ------------- Run | Yrd Mat Min Turns Passed 277 | 113 139 25 Spaces Moved 172 | 70 96 6 Core 19 | 12 7 . Treads . | . . . Legs . | . . . Wheels 153 | 58 89 6 Hover . | . . . Flight . | . . . Fastest Speed 50 | 50 80 80 Average Speed 87 | 83 91 80 Slowest Speed 150 | 90 150 80 Overloaded Moves . | . . . Propulsion Burnouts . | . . . Robots Hopped . | . . . Cave-ins Triggered . | . . . Exploration Rate (%) 14 | 5 28 9 Regions Visited 2 Branch Regions 1 Pre-discovered Areas . | . . . Known Exits Taken . | . . . Unknown Exits Taken 2 | 1 1 . Scrap Searched . | . . . Spaces Dug . | . . . Terrain Destroyed 7 | . 7 . Melee . | . . . Projectile . | . . . AOE 7 | . 7 . Terrain Rammed . | . . . Walls Destroyed . | . . . Machines Disabled . | . . . Actions | -11 -10 -10 --------- Run | Yrd Mat Min Total 258 | 121 114 23 Wait 32 | 31 . 1 Move 170 | 69 95 6 Hop . | . . . Pick Up 11 | 11 . . Fast Attach . | . . . Attach 10 | 7 3 . Detach . | . . . Swap . | . . . Drop 1 | 1 . . Fire 18 | 2 16 . Melee . | . . . Ram 16 | . . 16 Kick . | . . . Crush . | . . . Escape Stasis . | . . . Rewire . | . . . Trap . | . . . Miscellaneous . | . . . Route ------- -11/Scrapyard -10/Materials -10/Mines History --------- Turn | Location | Event 10 | -11/Scrapyard | Discovered new exit (range 15) 114 | -11/Scrapyard | Entered Materials 191 | -10/Materials | Discovered new exit (range 13) 248 | -10/Materials | Core integrity fell below 50% 253 | -10/Materials | Entered Mines 272 | -10/Mines | Core integrity fell below 20% 278 | -10/Mines | Destroyed by S-10 Pest with Light Assault Rifle Last Messages --------------- Switching to secondary target: G-34 Mercenary. Com. Wheel destroyed. Wheel destroyed. U-05 Engineer lays Concrete. Med. Laser destroyed. U-05 Engineer lays Concrete. Assault Rifle destroyed. LOCATION=UNKNOWN GOAL=ESCAPE Imp. Terrain Scanner destroyed. Slammed into S-10 Pest. Lgt. Ion Engine broken. Destabilizing: Short circuit. Slammed into S-10 Pest. Wheel destroyed. Slammed into S-10 Pest. Broken Lgt. Ion Engine destroyed. Slammed into S-10 Pest. Destabilizing: Core damaged (-2). Slammed into S-10 Pest. Map ----- +----------------------------------------------------+ | ????????????????????????????????????????????????? | | ????????????????????????????????????????????????? | | ????????????????????????????????????????????????? | | ????????????????????????????????????????????????? | | ????????????????????????????????????????????????? | | ????????????????????????????????????????????????? | | ????????????????????????????????????????????????? | | ????????????????????????????????????????????????? | | ????????????????????????????????????????????????? | | ????????????????????????????????????????????????? | | ????????????????????? ??????????????????????????? | | ??????????????????? ??????????????????????????? | | ?????????????????? ""????????????????????????? | | ??????????????????? ????????????????????????? | | ??????????????????? ????????????????????????? | | ???????????????????# ????????????????????????? | | ???????????????????# ????????????????????????? | | ??????????????????## ????????????????????????? | | ??????????????????# ????????????????????????? | | ??????????????????# ????????????????????????? | | ???????????????????# #????#???????????????????? | | ???????????????????# ##?? #???????????????????? | | ???????????????????# ##? #????#??????????????? | | ???????????????????# ##$### ##?????????????? | | ????????????????????# s #?????????????? | | ????????????????????## @ s #?????????????? | | ????????????????????## ##### #????????????? | | ???????????????????## s##?????? ?????????? | | ???????????# #### ##????????? ????????? | | ??????????# #??????????????????? | | ?????????# #?????????????????? | | ????????# #?????????????????? | | ????????# ###### ##?????????????????? | | ????????## #??????####??????????????????? | | ?????????##########?????????????????????????????? | | ????????????????????????????????????????????????? | | | | | | | | | | | | | | | | | | | | | | | | | | | | | +----------------------------------------------------+ Best States ------------- Heat Dissipation 25 Energy Generation 10 Energy Capacity 125 Matter Stores 269 Matter Capacity 300 Sight Range 16 Terrain Scan Range 16 Terrain Scan Density 10 Evasion (%) 50 Item Schematics ----------------- None Robot Schematics ------------------ None Fabricated ------------ Nothing Alien Tech Used ----------------- None Achievements -------------- None Challenges ------------ None Game ------ Seed ShrapnelGaussCompactor Manual? 0 Play Time 00:04:02 Cumulative 20.4 hours Start 2024.04.07 @ 10:39:11 End 2024.04.07 @ 10:43:00 Sessions 1 Manual Loads 0 Difficulty Rogue Special Mode None Game No. 23 Rogue 14 Adventurer 9 Explorer 0 Win Type - Total 0 Types 0/0/0/0/0/0/0/0/0 Lore% 19 Gallery% 32 Achievement% 26 Wizard Run 0 Options --------- Layout 1 ASCII 0 Keyboard 0 Movement Numpad Keybinds 0 Fullscreen 1 Font 24/Smallcaps Map View 50x35 Zoom Use 0% Tactical HUD 0 Map Filters NONE Filters NONE Steam 1 RUN: 67c0e5c4-211f-43cc-b7de-5ce8083644c7